fUSD/lending_fUSD_20240804
["ID","MTS","AMOUNT","RATE_DAILY","PERIOD"]
[334129478,1722789111678,-500.0,0.00023342,9]
[334129479,1722789111687,-500.0,0.00023342,9]
[334129480,1722789111697,-500.0,0.00023342,9]
[334129481,1722789111707,-500.0,0.00023342,9]
[334129482,1722789111716,-500.0,0.00023342,9]
[334129483,1722789111726,-550.63,0.00023342,7]
[334129484,1722789111736,-500.0,0.00023342,9]
[334129485,1722789111746,-603.97,0.00023342,9]
[334129486,1722789111755,-500.0,0.00023342,9]
[334129487,1722789111764,-500.0,0.00023342,9]
[334129488,1722789111774,-579.69,0.00023342,9]
[334129489,1722789111783,-611.16,0.00023342,9]
[334129490,1722789111793,-526.37,0.00023342,9]
[334129491,1722789111802,-519.43,0.00023342,9]
[334129492,1722789111812,-500.0,0.00023342,9]
[334129493,1722789111821,-474.29,0.00023342,9]
[334129494,1722789111831,-500.0,0.00023342,9]
[334129495,1722789111840,-151.0,0.00023342,7]
[334129496,1722789111849,-181.40037827,0.00023342,9]
[334129497,1722789111859,-500.0,0.00023342,9]
[334129498,1722789111868,-500.0,0.00023342,9]
[334129499,1722789111877,-500.0,0.00023342,9]
[334129500,1722789111886,-500.0,0.00023342,9]
[334129501,1722789111895,-500.0,0.00023342,9]
[334129502,1722789111905,-227.63,0.00023342,9]
[334129503,1722789111915,-500.0,0.00023342,9]
[334129504,1722789111925,-500.0,0.00023342,9]
[334129505,1722789111934,-500.0,0.00023342,9]
[334129506,1722789111944,-500.0,0.00023342,9]
[334129507,1722789111953,-500.0,0.00023342,9]
[334129508,1722789111963,-513.52,0.00023342,9]
[334129509,1722789111973,-500.0,0.00023342,9]
[334129510,1722789111982,-500.0,0.00023342,9]
[334129511,1722789111992,-500.0,0.00023342,9]
[334129512,1722789112001,-500.0,0.00023342,9]
[334129513,1722789112010,-500.0,0.00023342,9]
[334129514,1722789112020,-500.0,0.00023342,9]
[334129515,1722789112029,-545.7,0.00023342,9]
[334129516,1722789112038,-500.0,0.00023342,9]
[334129517,1722789112047,-500.0,0.00023342,9]
[334129518,1722789112056,-500.0,0.00023342,9]
[334129519,1722789112065,-500.0,0.00023342,9]
[334129520,1722789112075,-500.0,0.00023342,9]
[334129521,1722789112084,-500.0,0.00023342,9]
[334129522,1722789112093,-500.0,0.00023342,9]
[334129523,1722789112102,-500.0,0.00023342,9]
[334129524,1722789112112,-500.0,0.00023342,9]
[334129525,1722789112121,-500.0,0.00023342,9]
[334129526,1722789112130,-500.0,0.00023342,9]
[334129527,1722789112139,-500.0,0.00023342,9]
[334129528,1722789112148,-500.0,0.00023342,9]
[334129529,1722789112158,-500.0,0.00023342,9]
[334129530,1722789112168,-572.51,0.00023342,9]
[334129531,1722789112181,-500.0,0.00023342,9]
[334129532,1722789112190,-500.0,0.00023342,9]
[334129533,1722789112199,-500.0,0.00023342,9]
[334129534,1722789112209,-500.0,0.00023342,9]
[334129535,1722789112219,-500.0,0.00023342,9]
[334129536,1722789112228,-500.0,0.00023342,9]
[334129537,1722789112237,-500.0,0.00023342,9]
[334129538,1722789112250,-500.0,0.00023342,9]
[334129539,1722789112261,-500.0,0.00023342,9]
[334129540,1722789112270,-500.0,0.00023342,9]
[334129541,1722789112281,-500.0,0.00023342,9]
[334129542,1722789112290,-589.88,0.00023342,9]
[334129543,1722789112300,-500.0,0.00023342,9]
[334129544,1722789112309,-500.0,0.00023342,9]
[334129545,1722789112327,-500.0,0.00023342,9]
[334129546,1722789112338,-500.0,0.00023342,9]
[334129547,1722789112348,-500.0,0.00023342,9]
[334129548,1722789112358,-500.0,0.00023342,9]
[334129549,1722789112368,-500.0,0.00023342,9]
[334129550,1722789112380,-500.0,0.00023342,9]
[334129551,1722789112391,-643.51,0.00023342,9]
[334129552,1722789112401,-547.5878777,0.00023342,9]
[334129553,1722789112415,-437.38,0.00023342,9]
[334129554,1722789112427,-500.0,0.00023342,9]
[334129555,1722789112437,-500.0,0.00023342,9]
[334129556,1722789112447,-531.27,0.00023342,9]
[334129557,1722789112656,-672.45,0.00023342,9]
[334129558,1722789112665,-500.0,0.00023342,9]
[334129559,1722789112675,-500.0,0.00023342,9]
[334129560,1722789112685,-500.0,0.00023342,9]
[334129561,1722789112695,-500.0,0.00023342,9]
[334129562,1722789112704,-500.0,0.00023342,9]
[334129563,1722789112714,-500.0,0.00023342,9]
[334129564,1722789112724,-500.0,0.00023342,9]
[334129565,1722789112733,-500.0,0.00023342,9]
[334129566,1722789112743,-500.0,0.00023342,9]
[334129567,1722789112752,-500.0,0.00023342,9]
[334129568,1722789112762,-500.0,0.00023342,9]
[334129569,1722789112771,-500.0,0.00023342,9]
[334129570,1722789112781,-500.0,0.00023342,9]
[334129571,1722789112791,-500.0,0.00023342,9]
[334129572,1722789112800,-500.0,0.00023342,9]
[334129573,1722789112810,-500.0,0.00023342,9]
[334129574,1722789112819,-500.0,0.00023342,9]
[334129575,1722789112829,-500.0,0.00023342,9]
[334129576,1722789112838,-500.0,0.00023342,9]
[334129577,1722789112847,-500.0,0.00023342,9]
[334129578,1722789112857,-558.03,0.00023342,9]
[334129579,1722789112867,-500.0,0.00023342,9]
[334129580,1722789112877,-500.0,0.00023342,9]
[334129581,1722789112887,-864.98,0.00023342,9]
[334129582,1722789112896,-510.16,0.00023342,9]
[334129583,1722789112907,-522.61,0.00023342,9]
[334129584,1722789112917,-1944.23,0.00023342,9]
[334129585,1722789112926,-500.0,0.00023342,9]
[334129586,1722789112935,-500.0,0.00023342,9]
[334129587,1722789112945,-500.0,0.00023342,9]
[334129588,1722789112954,-500.0,0.00023342,9]
[334129589,1722789112964,-500.0,0.00023342,9]
[334129590,1722789112973,-500.0,0.00023342,9]
[334129591,1722789112983,-500.0,0.00023342,9]
[334129592,1722789112992,-500.0,0.00023342,9]
[334129593,1722789113001,-500.0,0.00023342,9]
[334129594,1722789113010,-500.0,0.00023342,9]
[334129595,1722789113019,-500.0,0.00023342,9]
[334129596,1722789113029,-584.42541074,0.00023342,9]
[334129597,1722789113038,-500.0,0.00023342,9]
[334129598,1722789113048,-408.02115215,0.00023342,9]
[334129599,1722789113058,-500.0,0.00023342,9]
[334129600,1722789113067,-500.0,0.00023342,9]
[334129601,1722789113077,-500.0,0.00023342,9]
[334129602,1722789113087,-500.0,0.00023342,9]
[334129603,1722789113097,-500.0,0.00023342,9]
[334129604,1722789113106,-500.0,0.00023342,9]
[334129605,1722789113116,-500.0,0.00023342,9]
[334129606,1722789113126,-377.21,0.00023342,9]
[334129607,1722789113136,-500.0,0.00023342,2]
[334129608,1722789113146,-500.0,0.00023342,9]
[334129609,1722789113155,-500.0,0.00023342,9]
[334129610,1722789113169,-500.0,0.00023342,9]
[334129611,1722789113178,-500.0,0.00023342,9]
[334129612,1722789113188,-500.0,0.00023342,9]
[334129613,1722789113198,-546.11,0.00023342,9]
[334129614,1722789113209,-500.0,0.00023342,9]
[334129615,1722789113219,-500.0,0.00023342,9]
[334129616,1722789113228,-500.0,0.00023342,9]
[334129617,1722789113238,-500.0,0.00023342,9]
[334129618,1722789113249,-226.94,0.00023342,9]
[334129619,1722789113259,-371.20746983,0.00023342,9]
[334129620,1722789113268,-544.54,0.00023342,9]
[334129621,1722789113278,-500.0,0.00023342,9]
[334129622,1722789113288,-500.0,0.00023342,9]
[334129623,1722789113297,-500.0,0.00023342,9]
[334129624,1722789113306,-500.0,0.00023342,9]
[334129625,1722789113315,-500.0,0.00023342,9]
[334129626,1722789113324,-500.0,0.00023342,9]
[334129627,1722789113334,-500.0,0.00023342,9]
[334129628,1722789113343,-500.0,0.00023342,9]
[334129629,1722789113353,-500.0,0.00023342,9]
[334129630,1722789113362,-500.0,0.00023342,9]
[334129631,1722789113372,-500.0,0.00023342,9]
[334129632,1722789113381,-162.82,0.00023342,9]
[334129633,1722789113390,-500.0,0.00023342,9]
[334129634,1722789113400,-500.0,0.00023342,9]
[334129635,1722789113409,-606.8,0.00023342,9]
[334129636,1722789113420,-500.0,0.00023342,9]
[334129637,1722789113429,-500.0,0.00023342,9]
[334129638,1722789113439,-593.44,0.00023342,9]
[334129639,1722789113448,-500.0,0.00023342,9]
[334129640,1722789113458,-500.0,0.00023342,9]
[334129641,1722789113467,-500.0,0.00023342,9]
[334129642,1722789113477,-500.0,0.00023342,9]
[334129643,1722789113487,-500.0,0.00023342,9]
[334129644,1722789113496,-607.33,0.00023342,9]
[334129645,1722789113506,-500.0,0.00023342,9]
[334129646,1722789113515,-500.0,0.00023342,9]
[334129647,1722789113525,-500.0,0.00023342,9]
[334129648,1722789113535,-500.0,0.00023342,9]
[334129649,1722789113544,-500.0,0.00023342,9]
[334129650,1722789113554,-500.0,0.00023342,9]
[334129651,1722789113563,-500.0,0.00023342,9]
[334129652,1722789113573,-250.66490118,0.00023342,9]
[334129653,1722789113582,-500.0,0.00023342,9]
[334129654,1722789113591,-500.0,0.00023342,9]
[334129655,1722789113601,-500.0,0.00023342,9]
[334129656,1722789113611,-500.0,0.00023342,9]
[334129657,1722789113620,-500.0,0.00023342,9]
[334129658,1722789113630,-500.0,0.00023342,9]
[334129659,1722789113639,-500.0,0.00023342,9]
[334129660,1722789113649,-500.0,0.00023342,9]
[334129661,1722789113658,-500.0,0.00023342,9]
[334129662,1722789113667,-500.0,0.00023342,9]
[334129663,1722789113678,-500.0,0.00023342,9]
[334129664,1722789113690,-500.0,0.00023342,9]
[334129665,1722789113700,-528.21,0.00023342,9]
[334129666,1722789113709,-500.0,0.00023342,9]
[334129667,1722789113719,-500.0,0.00023342,9]
[334129668,1722789113728,-591.28,0.00023342,9]
[334129669,1722789113737,-500.0,0.00023342,9]
[334129670,1722789113747,-500.0,0.00023342,9]
[334129671,1722789113756,-500.0,0.00023342,9]
[334129672,1722789113766,-310.3,0.00023342,9]
[334129673,1722789113775,-274.54,0.00023342,9]
[334129674,1722789113785,-569.32,0.00023342,9]
[334129675,1722789113794,-500.0,0.00023342,9]
[334129676,1722789113803,-500.0,0.00023342,9]
[334129677,1722789113812,-500.0,0.00023342,9]
[334129678,1722789113822,-523.37,0.00023342,9]
[334129679,1722789113838,-500.0,0.00023342,9]
[334129680,1722789113847,-500.0,0.00023342,9]
[334129681,1722789113856,-500.0,0.00023342,9]
[334129682,1722789113866,-281.05,0.00023342,9]
[334129683,1722789113875,-500.0,0.00023342,9]
[334129684,1722789113889,-500.0,0.00023342,9]
[334129685,1722789113899,-500.0,0.00023342,9]
[334129686,1722789113908,-500.0,0.00023342,9]
[334129687,1722789113919,-500.0,0.00023342,9]
[334129688,1722789113929,-500.0,0.00023342,9]
[334129689,1722789113938,-597.09317149,0.00023342,9]
[334129690,1722789113947,-6008.74,0.00023342,9]
[334129691,1722789113957,-500.0,0.00023342,9]
[334129692,1722789113966,-500.0,0.00023342,9]
[334129693,1722789113975,-500.0,0.00023342,9]
[334129694,1722789113985,-500.0,0.00023342,9]
[334129695,1722789113995,-500.0,0.00023342,9]
[334129696,1722789114004,-500.0,0.00023342,9]
[334129697,1722789114013,-500.0,0.00023342,9]
[334129698,1722789114023,-2039.61,0.00023342,9]
[334129699,1722789114032,-500.0,0.00023342,9]
[334129700,1722789114041,-500.0,0.00023342,9]
[334129701,1722789114051,-500.0,0.00023342,9]
[334129702,1722789114060,-3717.54,0.00023342,9]
[334129703,1722789114070,-500.0,0.00023342,9]
[334129704,1722789114080,-884.84,0.00023342,9]
[334129705,1722789114091,-632.35,0.00023342,9]
[334129706,1722789114102,-500.0,0.00023342,9]
[334129707,1722789114112,-500.0,0.00023342,9]
[334129708,1722789114122,-151.0,0.00023342,7]
[334129709,1722789114132,-500.0,0.00023342,9]
[334129710,1722789114142,-500.0,0.00023342,9]
[334129711,1722789114152,-580.87,0.00023342,9]
[334129712,1722789114163,-151.0,0.00023342,7]
[334129713,1722789114174,-3092.5,0.00023342,9]
[334129714,1722789114185,-500.0,0.00023342,9]
[334129715,1722789114194,-1380.41,0.00023342,9]
[334129716,1722789114203,-1525.48,0.00023342,9]
[334129717,1722789114214,-500.0,0.00023342,9]
[334129718,1722789114224,-500.0,0.00023342,9]
[334129719,1722789114233,-500.0,0.00023342,9]
[334129720,1722789114243,-500.0,0.00023342,9]
[334129721,1722789114254,-529.2,0.00023342,9]
[334129722,1722789114264,-735.29,0.00023342,9]
[334129723,1722789114274,-500.0,0.00023342,9]
[334129724,1722789114283,-500.0,0.00023342,9]
[334129725,1722789114293,-151.0,0.00023342,7]
[334129726,1722789114302,-500.0,0.00023342,9]
[334129727,1722789114311,-1651.73,0.00023342,9]
[334129728,1722789114321,-500.0,0.00023342,9]
[334129729,1722789114338,-1424.91,0.00023342,9]
[334129730,1722789114357,-511.18,0.00023342,9]
[334129731,1722789114366,-649.49858848,0.00023342,9]
[334129732,1722789114375,-9291.65,0.00023342,9]
[334129733,1722789114385,-500.0,0.00023342,9]
[334129734,1722789114394,-314.64,0.00023342,9]
[334129735,1722789114403,-500.0,0.00023342,9]
[334129736,1722789114414,-668.08,0.00023342,9]
[334129737,1722789114423,-1800.64,0.00023342,9]
[334129738,1722789114433,-1076.82,0.00023342,9]
[334129739,1722789114443,-1604.95,0.00023342,9]
[334129740,1722789114453,-696.11,0.00023342,9]
[334129741,1722789114463,-840.83,0.00023342,9]
[334129742,1722789114473,-734.28,0.00023342,9]
[334129743,1722789114482,-500.0,0.00023342,9]
[334129744,1722789114491,-500.0,0.00023342,9]
[334129745,1722789114500,-513.11222076,0.00023342,9]
[334129746,1722789114510,-500.0,0.00023342,9]
[334129747,1722789114519,-500.0,0.00023342,9]
[334129748,1722789114528,-580.56,0.00023342,9]
[334129749,1722789114538,-500.0,0.00023342,9]
[334129750,1722789114547,-1654.23,0.00023342,9]
[334129751,1722789114557,-372.42,0.00023342,9]
[334129752,1722789114567,-932.72,0.00023342,9]
[334129753,1722789114576,-728.39,0.00023342,9]
[334129754,1722789114586,-500.0,0.00023342,9]
[334129755,1722789114595,-500.0,0.00023342,9]
[334129756,1722789114605,-716.95,0.00023342,9]
[334129757,1722789114614,-652.16,0.00023342,9]
[334129758,1722789114624,-509.23,0.00023342,9]
[334129759,1722789114633,-500.0,0.00023342,9]
[334129760,1722789114643,-330.31,0.00023342,9]
[334129761,1722789114652,-1421.84,0.00023342,9]
[334129762,1722789114662,-500.0,0.00023342,9]
[334129763,1722789114671,-1831.37,0.00023342,9]
[334129764,1722789114680,-210.7368896,0.00023342,9]
[334129765,1722789114689,-9159.33,0.00023342,9]
[334129766,1722789114699,-500.0,0.00023342,9]
[334129767,1722789114708,-500.0,0.00023342,9]
[334129768,1722789114717,-24340.79,0.00023342,9]
[334129769,1722789114728,-500.0,0.00023342,9]
[334129770,1722789114737,-500.0,0.00023342,9]
[334129771,1722789114747,-272.56373992,0.00023342,9]
[334129772,1722789114756,-500.0,0.00023342,9]
[334129773,1722789114765,-500.0,0.00023342,9]
[334129774,1722789114775,-500.0,0.00023342,9]
[334129775,1722789114784,-500.0,0.00023342,9]
[334129776,1722789114794,-500.0,0.00023342,9]
[334129777,1722789114803,-696.26,0.00023342,9]
[334129778,1722789114813,-500.0,0.00023342,9]
[334129779,1722789114821,-2392.07,0.00023342,9]
[334129780,1722789114830,-250.0,0.00023342,9]
[334129781,1722789114840,-6117.15,0.00023342,9]
[334129782,1722789114864,-343.51449677,0.00023342,9]
[334129783,1722789114873,-500.0,0.00023342,9]
[334129784,1722789114883,-500.0,0.00023342,9]
[334129785,1722789114892,-500.0,0.00023342,9]
[334129786,1722789114901,-1134.1,0.00023342,9]
[334129787,1722789114911,-871.99,0.00023342,9]
[334129788,1722789114920,-2627.33,0.00023342,9]
[334129789,1722789114930,-771.73,0.00023342,9]
[334129790,1722789114939,-500.0,0.00023342,9]
[334129791,1722789114948,-544.49,0.00023342,9]
[334129792,1722789114958,-6002.83,0.00023342,9]
[334129793,1722789114966,-500.0,0.00023342,9]
[334129794,1722789114976,-791.38,0.00023342,9]
[334129795,1722789114985,-500.0,0.00023342,9]
[334129796,1722789114994,-11888.09,0.00023342,9]
[334129797,1722789115003,-500.0,0.00023342,9]
[334129798,1722789115013,-500.0,0.00023342,9]
[334129799,1722789115022,-500.0,0.00023342,9]
[334129800,1722789115031,-473.32,0.00023342,9]
[334129801,1722789115124,-500.0,0.00023342,9]
[334129802,1722789115133,-944.27,0.00023342,9]
[334129803,1722789115142,-1585.57,0.00023342,9]
[334129804,1722789115151,-4038.41,0.00023342,9]
[334129805,1722789115161,-608.31,0.00023342,9]
[334129806,1722789115174,-1194.13,0.00023342,9]
[334129807,1722789115183,-1646.59,0.00023342,9]
[334129808,1722789115192,-949.11,0.00023342,9]
[334129809,1722789115201,-500.0,0.00023342,9]
[334129810,1722789115212,-500.0,0.00023342,9]
[334129811,1722789115221,-2124.99,0.00023342,9]
[334129812,1722789115230,-1277.47,0.00023342,9]
[334129813,1722789115240,-500.0,0.00023342,9]
[334129814,1722789115250,-500.0,0.00023342,9]
[334129815,1722789115260,-2060.41,0.00023342,9]
[334129816,1722789115269,-5462.19,0.00023342,9]
[334129817,1722789115278,-1732.64,0.00023342,9]
[334129818,1722789115287,-500.0,0.00023342,9]
[334129819,1722789115297,-500.0,0.00023342,9]
[334129820,1722789115306,-500.0,0.00023342,9]
[334129821,1722789115316,-500.0,0.00023342,9]
[334129822,1722789115325,-500.0,0.00023342,9]
[334129823,1722789115334,-1091.18,0.00023342,9]
[334129824,1722789115343,-500.0,0.00023342,9]
[334129825,1722789115372,-544.49,0.00023342,9]
[334129826,1722789115381,-500.0,0.00023342,9]
[334129827,1722789115391,-500.0,0.00023342,9]
[334129828,1722789115400,-564.87,0.00023342,9]
[334129829,1722789115409,-15172.23,0.00023342,9]
[334129830,1722789115418,-4452.48,0.00023342,9]
[334129831,1722789115427,-500.0,0.00023342,9]
[334129832,1722789115436,-851.31,0.00023342,9]
[334129833,1722789115446,-500.0,0.00023342,9]
[334129834,1722789115456,-1441.44,0.00023342,9]
[334129835,1722789115466,-584.6,0.00023342,9]
[334129836,1722789115475,-2716.36,0.00023342,9]
[334129837,1722789115485,-500.0,0.00023342,9]
[334129838,1722789115494,-1571.23,0.00023342,9]
[334129839,1722789115503,-574.32,0.00023342,9]
[334129840,1722789115512,-500.0,0.00023342,9]
[334129841,1722789115520,-500.0,0.00023342,9]
[334129842,1722789115529,-1778.849832,0.00023342,7]
[334129843,1722789115538,-500.0,0.00023342,9]
[334129844,1722789115547,-703.47,0.00023342,9]
[334129845,1722789115556,-1021.22,0.00023342,9]
[334129846,1722789115566,-1778.849832,0.00023342,7]
[334129847,1722789115575,-552.80998123,0.00023342,9]
[334129848,1722789115584,-1535.24,0.00023342,9]
[334129849,1722789115594,-1291.6,0.00023342,9]
[334129850,1722789115603,-763.08,0.00023342,9]
[334129851,1722789115612,-5391.24,0.00023342,9]
[334129852,1722789115622,-1354.84,0.00023342,9]
[334129853,1722789115631,-584.33,0.00023342,9]
[334129854,1722789115641,-500.0,0.00023342,9]
[334129855,1722789115650,-709.22,0.00023342,9]
[334129856,1722789115659,-500.0,0.00023342,9]
[334129857,1722789115668,-2713.37,0.00023342,9]
[334129858,1722789115679,-500.0,0.00023342,9]
[334129859,1722789115688,-2249.61,0.00023342,9]
[334129860,1722789115697,-995.02,0.00023342,9]
[334129861,1722789115707,-253.193013,0.00023342,7]
[334129862,1722789115716,-3893.64,0.00023342,9]
[334129863,1722789115726,-501.54928372,0.00023342,9]
[334129864,1722789115735,-500.0,0.00023342,9]
[334129865,1722789115744,-500.0,0.00023342,9]
[334129866,1722789115754,-243.71036768,0.00023342,9]
[334129867,1722789115764,-605.15,0.00023342,9]
[334129868,1722789115773,-892.75,0.00023342,9]
[334129869,1722789115783,-1131.9,0.00023342,9]
[334129870,1722789115793,-2837.07,0.00023342,9]
[334129871,1722789115801,-500.0,0.00023342,9]
[334129872,1722789115809,-1059.61,0.00023342,9]
[334129873,1722789115819,-253.193013,0.00023342,7]
[334129874,1722789115828,-901.69,0.00023342,9]
[334129875,1722789115837,-375.64,0.00023342,9]
[334129876,1722789115847,-359.07091404,0.00023342,9]
[334129877,1722789115863,-873.69,0.00023342,9]
[334129878,1722789115881,-500.0,0.00023342,9]
[334129879,1722789115891,-500.0,0.00023342,9]
[334129880,1722789115900,-1120.25,0.00023342,9]
[334129881,1722789115909,-500.0,0.00023342,9]
[334129882,1722789115918,-500.0,0.00023342,9]
[334129883,1722789115928,-1475.32,0.00023342,9]
[334129884,1722789115937,-500.0,0.00023342,9]
[334129885,1722789115946,-6849.94,0.00023342,9]
[334129886,1722789115955,-2285.11,0.00023342,9]
[334129887,1722789115965,-1520.63,0.00023342,9]
[334129888,1722789115974,-645.98,0.00023342,9]
[334129889,1722789115983,-1055.9,0.00023342,9]
[334129890,1722789115993,-500.0,0.00023342,9]
[334129891,1722789116002,-500.0,0.00023342,9]
[334129892,1722789116011,-500.0,0.00023342,9]
[334129893,1722789116020,-500.0,0.00023342,9]
[334129894,1722789116030,-4923.42,0.00023342,9]
[334129895,1722789116039,-500.0,0.00023342,9]
[334129896,1722789116049,-500.0,0.00023342,9]
[334129897,1722789116058,-1211.89,0.00023342,9]
[334129898,1722789116067,-1860.21,0.00023342,9]
[334129899,1722789116077,-500.0,0.00023342,9]
[334129900,1722789116086,-500.0,0.00023342,9]
[334129901,1722789116095,-151.0,0.00023342,7]
[334129902,1722789116104,-2498.66,0.00023342,9]
[334129903,1722789116114,-500.0,0.00023342,9]
[334129904,1722789116123,-723.93,0.00023342,9]
[334129905,1722789116133,-2543.95,0.00023342,9]
[334129906,1722789116142,-500.0,0.00023342,9]
[334129907,1722789116152,-500.0,0.00023342,9]
[334129908,1722789116162,-781.57,0.00023342,9]
[334129909,1722789116172,-1321.62,0.00023342,9]
[334129910,1722789116184,-1395.06,0.00023342,9]
[334129911,1722789116194,-1624.5,0.00023342,9]
[334129912,1722789116203,-1415.76,0.00023342,9]
[334129913,1722789116212,-1413.44,0.00023342,9]
[334129914,1722789116222,-500.0,0.00023342,9]
[334129915,1722789116231,-1456.38,0.00023342,9]
[334129916,1722789116241,-500.0,0.00023342,9]
[334129917,1722789116253,-1356.63,0.00023342,9]
[334129918,1722789116262,-1000.0,0.00023342,9]
[334129919,1722789116272,-911.83,0.00023342,9]
[334129920,1722789116281,-500.0,0.00023342,9]
[334129921,1722789116290,-500.0,0.00023342,9]
[334129922,1722789116299,-900.99,0.00023342,9]
[334129923,1722789116309,-500.0,0.00023342,9]
[334129924,1722789116318,-500.0,0.00023342,9]
[334129925,1722789116327,-1747.36,0.00023342,9]
[334129926,1722789116336,-2014.48,0.00023342,9]
[334129927,1722789116346,-2308.05,0.00023342,9]
[334129928,1722789116355,-500.0,0.00023342,9]
[334129929,1722789116382,-500.0,0.00023342,9]
[334129930,1722789116391,-500.0,0.00023342,9]
[334129931,1722789116400,-500.0,0.00023342,9]
[334129932,1722789116410,-2084.47,0.00023342,9]
[334129933,1722789116419,-500.0,0.00023342,9]
[334129934,1722789116428,-3204.33,0.00023342,9]
[334129935,1722789116438,-500.0,0.00023342,9]
[334129936,1722789116447,-1114.5,0.00023342,9]
[334129937,1722789116456,-500.0,0.00023342,9]
[334129938,1722789116466,-782.31,0.00023342,9]
[334129939,1722789116476,-1467.0,0.00023342,9]
[334129940,1722789116485,-1170.79,0.00023342,9]
[334129941,1722789116495,-1027.92,0.00023342,9]
[334129942,1722789116503,-638.14,0.00023342,9]
[334129943,1722789116512,-500.0,0.00023342,9]
[334129944,1722789116521,-584.12,0.00023342,9]
[334129945,1722789116531,-1503.19,0.00023342,9]
[334129946,1722789116540,-500.0,0.00023342,9]
[334129947,1722789116549,-500.0,0.00023342,9]
[334129948,1722789116558,-2370.59,0.00023342,9]
[334129949,1722789116568,-2115.13,0.00023342,9]
[334129950,1722789116577,-8526.84,0.00023342,9]
[334129951,1722789116587,-300.2,0.00023342,9]
[334129952,1722789116597,-931.26,0.00023342,9]
[334129953,1722789116607,-500.0,0.00023342,9]
[334129954,1722789116616,-792.92,0.00023342,9]
[334129955,1722789116626,-500.0,0.00023342,9]
[334129956,1722789116636,-500.0,0.00023342,9]
[334129957,1722789116645,-500.0,0.00023342,9]
[334129958,1722789116655,-500.0,0.00023342,9]
[334129959,1722789116665,-500.0,0.00023342,9]
[334129960,1722789116675,-500.0,0.00023342,9]
[334129961,1722789116684,-500.0,0.00023342,9]
[334129962,1722789116694,-1212.39,0.00023342,9]
[334129963,1722789116704,-500.0,0.00023342,9]
[334129964,1722789116714,-1614.2,0.00023342,9]
[334129965,1722789116723,-2872.78,0.00023342,9]
[334129966,1722789116733,-500.0,0.00023342,9]
[334129967,1722789116742,-940.66,0.00023342,9]
[334129968,1722789116751,-720.05,0.00023342,9]
[334129969,1722789116761,-500.0,0.00023342,9]
[334129970,1722789116771,-2278.54,0.00023342,9]
[334129971,1722789116780,-1140.48,0.00023342,9]
[334129972,1722789116790,-416.26,0.00023342,9]
[334129973,1722789116798,-1064.77,0.00023342,9]
[334129974,1722789116807,-500.0,0.00023342,9]
[334129975,1722789116817,-500.0,0.00023342,9]
[334129976,1722789116826,-500.0,0.00023342,9]
[334129977,1722789116836,-2298.73,0.00023342,9]